lending/lending_fUSD_20240721
["ID","MTS","AMOUNT","RATE_DAILY","PERIOD"]
[332850762,1721580638579,-3657.5,0.00011005,2]
[332850763,1721580638597,-835.77,0.00011005,2]
[332850764,1721580638613,-1846.64551871,0.00011005,2]
[332850898,1721580640459,-892.91432,0.00011005,2]
[332850899,1721580640475,-414.54,0.00011012,2]
[332850900,1721580640491,-499.99,0.00011104,2]
[332850901,1721580640506,-79.3562516,0.00011104,2]
[332850902,1721580640524,-1252.8037484,0.00011104,2]
[332850903,1721580640539,-150.0,0.00011104,2]
[332850904,1721580640554,-512.39532544,0.00011105,2]
[332850906,1721580640569,-254.72693387,0.00011105,2]
[332850908,1721580640584,-246.21354619,0.00011105,2]
[332850910,1721580640599,-158.68620694,0.00011105,2]
[332850913,1721580640614,-719.02900539,0.00011105,2]
[332850955,1721580641028,-1619.83276212,0.00011105,2]
[332851042,1721580642070,250.0,0.00010982,2]
[332851072,1721580643341,-373.27269138,0.00011105,2]
[332851073,1721580643351,-171.04080637,0.00011105,2]
[332851074,1721580643360,-128.90922017,0.00011105,2]
[332851115,1721580647007,-62.74937819,0.00011105,2]
[332851116,1721580647018,-236.00243342,0.00011105,2]
[332851117,1721580647027,-336.3076797,0.00011105,2]
[332851118,1721580647036,-155.0,0.00011105,2]
[332851119,1721580647046,-531.52423191,0.00011105,2]
[332851120,1721580647062,-484.49996538,0.00011105,2]
[332851121,1721580647075,-299.87458373,0.00011105,2]
[332851122,1721580647084,-238.44306856,0.00011105,2]
[332851123,1721580647094,-155.0,0.00011105,2]
[332851124,1721580647104,-203.41769491,0.00011105,2]
[332851125,1721580647113,-155.0,0.00011105,2]
[332851126,1721580647123,-74.99820148,0.00011105,2]
[332851127,1721580647135,-354.57,0.00011105,2]
[332851128,1721580647155,-1121.72830362,0.00011105,2]
[332851129,1721580647172,-1000.0,0.00011105,2]
[332852327,1721580708755,1582.23200955,0.00010959,3]
[332852328,1721580708777,10000.0,0.00010959,3]
[332852329,1721580708799,10000.0,0.00010959,3]
[332852330,1721580708821,3475.26703288,0.00010959,3]
[332852331,1721580918607,150.0,8.683e-05,2]
[332852332,1721580918630,150.0,8.683e-05,2]
[332852333,1721580918655,150.0,8.683e-05,2]
[332852334,1721580918678,150.0,8.683e-05,2]
[332852335,1721580918701,150.0,8.683e-05,2]
[332852336,1721580918724,123.18,8.683e-05,2]
[332852338,1721580979009,150.0,8.683e-05,2]
[332852339,1721580979033,150.0,8.683e-05,2]
[332852340,1721580979054,150.0,8.683e-05,2]
[332852341,1721580979076,150.0,8.683e-05,2]
[332852342,1721580979097,150.0,8.683e-05,2]
[332852343,1721580979124,150.0,8.683e-05,2]
[332852344,1721580979145,150.0,8.683e-05,2]
[332852345,1721580979166,150.0,8.683e-05,2]
[332852346,1721580979188,150.0,8.683e-05,2]
[332852347,1721580979209,150.0,8.683e-05,2]
[332852348,1721580979233,150.0,8.683e-05,2]
[332852349,1721580979255,150.0,8.683e-05,2]
[332852350,1721580979282,150.0,8.683e-05,2]
[332852351,1721580979304,150.0,8.683e-05,2]
[332852352,1721580979325,150.0,8.683e-05,2]
[332852353,1721580979346,150.0,8.683e-05,2]
[332852354,1721580979366,140.2,8.683e-05,2]
[332852355,1721580985844,352.86961628,8.683e-05,2]
[332852356,1721580985866,548.72925626,8.683e-05,2]
[332852357,1721581076367,900.0,8.683e-05,2]
[332852358,1721581196055,-189.11,0.00010264,2]
[332852359,1721581196077,-189.11,0.0001029,2]
[332852360,1721581196101,-250.0,0.00010301,2]
[332852361,1721581196126,-6371.78,0.00010315,2]
[332852362,1721581203165,-2179.896023,0.00010315,2]
[332852363,1721581203190,-189.11,0.00010315,2]
[332852364,1721581203212,-250.0,0.00010368,2]
[332852365,1721581203234,-500.0,0.00010484,2]
[332852366,1721581203256,-500.0,0.00010484,2]
[332852367,1721581203279,-300.0,0.00010487,2]
[332852368,1721581203302,-3080.993977,0.00010488,2]
[332852369,1721581215472,-1000.0,0.00010488,2]
[332852370,1721581492194,890.99,8.29e-05,2]
[332852379,1721581578092,7747.42474307,8.29e-05,2]
[332852380,1721581588959,461.58525693,8.29e-05,2]
[332852381,1721581588981,10000.0,8.29e-05,2]
[332852382,1721581589005,10000.0,8.29e-05,2]
[332852383,1721581589028,10000.0,8.29e-05,2]
[332852384,1721581589051,10000.0,8.29e-05,2]
[332852385,1721581589074,10000.0,8.29e-05,2]
[332852386,1721581589096,10000.0,8.29e-05,2]
[332852387,1721581589119,10000.0,8.29e-05,2]
[332852388,1721581589143,10000.0,8.29e-05,2]
[332852389,1721581589166,10000.0,8.29e-05,2]
[332852390,1721581589188,10000.0,8.29e-05,2]
[332852391,1721581589210,10000.0,8.29e-05,2]
[332852392,1721581589233,10000.0,8.29e-05,2]
[332852393,1721581589260,10000.0,8.29e-05,2]
[332852394,1721581589283,10000.0,8.29e-05,2]
[332852395,1721581589304,1451.27074374,8.29e-05,2]
[332852396,1721581589326,2000.0,8.29e-05,2]
[332852397,1721581589347,2000.0,8.29e-05,2]
[332852398,1721581589368,2000.0,8.29e-05,2]
[332852399,1721581589390,2000.0,8.29e-05,2]
[332852400,1721581589412,2000.0,8.29e-05,2]
[332852401,1721581589433,2000.0,8.29e-05,2]
[332852402,1721581589453,730.0,8.29e-05,2]
[332852403,1721581589477,81358.78900593,8.29e-05,2]
[332852406,1721581613974,150.0,8.29e-05,2]
[332852407,1721581613995,150.0,8.29e-05,2]
[332852408,1721581614020,150.0,8.29e-05,2]
[332852409,1721581614042,150.0,8.29e-05,2]
[332852410,1721581614063,150.0,8.29e-05,2]
[332852411,1721581614085,120.85768416,8.29e-05,2]
[332852416,1721581637370,8551.676023,9.946e-05,2]
[332852444,1721581657128,155.14462349,8.29e-05,2]
[332852445,1721581671414,5293.17935351,8.29e-05,2]
[332852446,1721581671438,230708.46565309,8.29e-05,2]
[332852453,1721581729993,150.0,8.29e-05,2]
[332852454,1721581730014,236.79848972,8.29e-05,2]
[332852455,1721581730036,484.05919444,8.29e-05,2]
[332852458,1721581783930,3153.18201167,8.29e-05,2]
[332852481,1721581831516,-2876.85,0.00010021,2]
[332852482,1721581831526,-309.09146673,0.00010023,2]
[332852483,1721581831537,-472.53583505,0.00010023,2]
[332852484,1721581831787,-1974.8225,0.00010023,2]
[332852485,1721581831799,-120.40019822,0.00010023,2]
[332852486,1721581831809,-418.40076177,0.00010026,2]
[332852487,1721581831820,-1165.79999,0.00010026,2]
[332852488,1721581831831,-1292.64924823,0.00010026,2]
[332852489,1721581831840,-2876.85,0.00010029,2]
[332852490,1721581831849,-90.11145233,0.00010031,2]
[332852491,1721581831861,-1618.07633989,0.00010031,2]
[332852492,1721581831871,-523.015,0.00010031,2]
[332852493,1721581831883,-645.64720778,0.00010031,2]
[332852495,1721581831892,-2876.85,0.00010034,2]
[332852496,1721581831902,-2876.85,0.00010037,2]
[332852498,1721581831911,-1472.61389485,0.00010039,2]
[332852499,1721581831922,-1404.23610515,0.00010039,2]
[332852500,1721581831931,-1208.87262207,0.00010042,2]
[332852501,1721581831953,-825.99999941,0.00010042,2]
[332852502,1721581831964,-402.66451155,0.00010042,2]
[332852503,1721581831976,-439.31286697,0.00010042,2]
[332852504,1721581831986,-23.73713303,0.00010044,2]
[332852505,1721581831998,-450.0,0.00010044,2]
[332852506,1721581832010,-1154.86373683,0.00010044,2]
[332852507,1721581832021,-1248.24913014,0.00010044,2]
[332852508,1721581832031,-585.0,0.00010046,2]
[332852509,1721581832043,-300.0,0.00010047,2]
[332852510,1721581832054,-2876.85,0.00010047,2]
[332852511,1721581832063,-1000.0,0.00010047,2]
[332852512,1721581832073,-748.80086986,0.00010048,2]
[332852513,1721581832086,-122.0568143,0.00010048,2]
[332852514,1721581832095,-2876.85,0.0001005,2]
[332852515,1721581832104,-2876.85,0.00010052,2]
[332852516,1721581832114,-2876.85,0.00010055,2]
[332852517,1721581832123,-2876.85,0.00010058,2]
[332852518,1721581832134,-2876.85,0.0001006,2]
[332852519,1721581832147,-2876.85,0.00010063,2]
[332852520,1721581832158,-2876.85,0.00010066,2]
[332852521,1721581832167,-2876.85,0.00010068,2]
[332852522,1721581832177,-2876.85,0.00010071,2]
[332852523,1721581832186,-250.0,0.000101,2]
[332852524,1721581832196,-500.0,0.00010135,2]
[332852525,1721581832205,-9043.9749913,0.00010138,2]
[332852526,1721581832336,-792.5901174,0.00010138,2]
[332852527,1721581832347,-291.826501,0.00010138,2]
[332852528,1721581832360,-3636.7873841,0.00010138,2]
[332852529,1721581832375,-285.91273714,0.00010138,2]
[332852530,1721581832388,-9848.90826906,0.00010138,2]
[332852531,1721581832401,-22.22239842,0.00010163,2]
[332852532,1721581832413,-477.77760158,0.00010163,2]
[332852533,1721581832423,-131.9023984,0.00010272,2]
[332852534,1721581832435,-28.0976016,0.00010272,2]
[332852535,1721581832444,-1054.58,0.00010413,2]
[332852536,1721581832453,-181.15,0.0001052,2]
[332852537,1721581832463,-413.15225207,0.00010525,2]
[332852538,1721581832473,-203.11980475,0.00010525,2]
[332852539,1721581832482,-155.92115813,0.00010525,2]
[332852540,1721581832492,-813.09349499,0.00010525,2]
[332852541,1721581832501,-521.74362309,0.00010525,2]
[332852542,1721581832510,-890.99,0.00010554,2]
[332852543,1721581832520,-1000.0,0.00010841,2]
[332852544,1721581832529,-177.5,0.00010841,2]
[332852545,1721581832538,-200.0,0.000109,3]
[332852546,1721581832548,-150.0,0.00010999,2]
[332852547,1721581832558,-482.77171221,0.00011,2]
[332852548,1721581832567,-500.0,0.00011,4]
[332852549,1721581832576,-320.7457,0.00011005,2]
[332852550,1721581832586,-499.99,0.00011005,2]
[332852551,1721581832595,-1383.46585,0.0001101,2]
[332852552,1721581832604,-452.7153,0.00011086,2]
[332852553,1721581832614,-800.0,0.000111,4]
[332852554,1721581832623,-1278.79236462,0.00011102,2]
[332852555,1721581832635,-703.37788318,0.00011102,2]
[332852556,1721581832646,-3550.9297522,0.00011102,2]
[332852557,1721581832655,-6604.6219978,0.00011103,2]
[332852587,1721581837592,-155.0,0.00010048,2]
[332852588,1721581837602,-1576.09387748,0.00011103,2]
[332852589,1721581837613,-381.33465368,0.00011103,2]
[332852590,1721581837675,-5664.65497154,0.00011103,2]
[332852591,1721581837685,-8727.03,0.00011103,2]
[332852592,1721581837694,-150.99,0.00011103,2]
[332852593,1721581837703,-779.4689891,0.00011104,2]
[332852594,1721581837713,-4153.25335272,0.00011105,2]
[332852595,1721581837729,-8757.26905142,0.00011105,2]
[332852596,1721581837738,-9257.67538197,0.00011105,2]
[332852597,1721581837748,-3399.71436587,0.00011105,2]
[332852598,1721581837758,-19701.43011291,0.00011105,2]
[332852599,1721581837768,-10528.40518333,0.00011105,2]
[332852600,1721581837777,-155.0,0.00011105,2]
[332852601,1721581837787,-835.97661551,0.00011105,2]
[332852602,1721581837796,-182.14056294,0.00011105,2]
[332852603,1721581837808,-111.01061542,0.00011105,2]
[332852604,1721581837818,-529.36820483,0.00011105,2]
[332852605,1721581837828,-155.11912756,0.00011105,2]
[332852606,1721581837838,-270.18518051,0.00011105,2]
[332852607,1721581837847,-1255.4686182,0.00011105,2]
[332852608,1721581837858,-525.41980997,0.00011105,2]
[332852609,1721581837868,-155.0,0.00011105,2]
[332852610,1721581837878,-205.51688122,0.00011105,2]
[332852611,1721581837888,-19663.15203905,0.00011105,2]
[332852612,1721581837897,-5599.84531673,0.00011111,2]
[332852613,1721581837909,-697.22222227,0.00011111,2]
[332852614,1721581837921,-461.50854826,0.00011111,2]
[332852615,1721581837930,-1383.46586,0.0001115,2]
[332852616,1721581837940,-722.49604628,0.0001116,2]
[332852617,1721581837950,-155.75580695,0.00011161,2]
[332852618,1721581837959,-929.98361217,0.00011186,2]
[332852620,1721581837976,-22315.64189065,0.00011186,2]
[332852621,1721581837986,-4696.299,0.00011186,2]
[332852622,1721581837997,-10668.59079376,0.00011186,2]
[332852623,1721581838008,-2192.4951309,0.00011186,2]
[332852624,1721581838024,-994.53623725,0.00011186,2]
[332852638,1721581838312,-357.12438295,0.00011186,2]
[332852734,1721581842395,-250.0,0.00010554,2]
[332852736,1721581842407,-364.71419276,0.0001116,2]
[332852737,1721581842419,-3254.77228296,0.0001116,2]
[332852738,1721581842429,-126.64434304,0.00011186,2]
[332852739,1721581842441,-353.17999999,0.00011186,2]
[332852742,1721581842731,-4758.83315236,0.00011186,2]
[332852743,1721581842789,-359.50745036,0.00011186,2]
[332852744,1721581842801,-5474.79597955,0.00011186,2]
[332852745,1721581842811,-150.0,0.000112,2]
[332852746,1721581842820,-1059.04,0.000112,2]
[332852747,1721581842829,-82.92402045,0.000112,2]
[332852753,1721581842901,-217.07597955,0.000112,2]
[332852755,1721581842912,-355.69,0.000112,2]
[332852757,1721581842922,-150.0,0.000112,2]
[332852759,1721581842933,-355.69,0.000112,2]
[332852761,1721581842943,-150.0,0.000112,2]
[332852763,1721581842953,-355.69,0.000112,2]
[332852765,1721581842963,-310.13913098,0.000112,2]
[332852879,1721581845486,-43.99086902,0.000112,2]
[332852880,1721581845496,-778.92078898,0.000112,4]
[332852913,1721581846387,-321.07921102,0.000112,4]
[332852914,1721581846396,-3523.3771,0.00011217,2]
[332852915,1721581846407,-500.0,0.00011221,2]
[332852916,1721581846416,-7041.68508156,0.00011231,2]
[332852917,1721581846428,-453.81931844,0.00011231,2]
[332852918,1721581846439,-468.3864,0.00011231,2]
[332852919,1721581846448,-1000.0,0.00011231,2]
[332852920,1721581846458,-220.42,0.00011233,3]
[332852921,1721581846468,-1383.46586,0.000113,2]
[332852922,1721581846477,-1300.0,0.000113,4]
[332852923,1721581846487,-2837.16238839,0.00011321,2]
[332852924,1721581846496,-155.85581322,0.00011324,2]
[332852925,1721581846506,-5305.22294839,0.00011324,2]
[332852926,1721581846518,-155.71391416,0.00011324,2]
[332852927,1721581846527,-19626.61479396,0.00011331,2]
[332852928,1721581846592,-23339.79897522,0.00011331,2]
[332852929,1721581846607,-882.8842407,0.00011331,2]
[332852930,1721581846620,-6777.82859999,0.00011331,2]
[332852931,1721581846634,-714.13138092,0.00011331,2]
[332852932,1721581846650,-447.8382601,0.00011331,2]
[332852940,1721581907264,150.0,8.688e-05,2]
[332852941,1721581907285,35.29,8.688e-05,2]
[332852952,1721581968510,150.0,8.688e-05,2]
[332852953,1721581968547,720.85768416,8.688e-05,2]
[332852977,1721582026979,155.0,8.688e-05,2]
[332852978,1721582032399,150.0,8.688e-05,2]
[332852979,1721582032422,150.0,8.688e-05,2]
[332852980,1721582032444,150.0,8.688e-05,2]
[332852981,1721582032470,264.71,8.688e-05,2]
[332852982,1721582032492,1602.93268665,8.688e-05,2]
[332852983,1721582033581,1369.23166798,8.688e-05,2]
[332852984,1721582048411,158.80623493,8.688e-05,2]
[332852985,1721582055137,155.0,8.688e-05,2]
[332852986,1721582058431,155.0,8.688e-05,2]
[332852987,1721582064868,160.22778644,8.688e-05,2]
[332852988,1721582064930,797.15416373,8.688e-05,2]
[332852989,1721582072083,653.73161545,8.688e-05,2]
[332852990,1721582073121,176.84,8.24e-05,2]
[332852991,1721582079630,797.15416373,8.688e-05,2]
[332852992,1721582079925,1050.0,8.688e-05,2]
[332852993,1721582083649,155.0,8.688e-05,2]
[332852994,1721582086998,558.79380347,8.688e-05,2]
[332852995,1721582089008,155.0,8.688e-05,2]
[332852996,1721582098656,155.0,8.688e-05,2]
[332852997,1721582100977,558.79380347,8.688e-05,2]
[332852998,1721582102290,155.0,8.688e-05,2]
[332852999,1721582105016,870.85768416,8.688e-05,2]
[332853000,1721582110931,155.0,8.688e-05,2]
[332853001,1721582114039,870.85768416,8.688e-05,2]
[332853002,1721582118795,1662.44,8.237e-05,2]
[332853003,1721582121315,155.0,8.688e-05,2]
[332853004,1721582126561,1369.23166798,8.688e-05,2]
[332853005,1721582145412,158.80623493,8.688e-05,2]
[332853006,1721582159139,201.16723151,8.688e-05,2]
[332853007,1721582163041,174.75271438,8.645e-05,2]
[332853008,1721582182631,797.15416373,8.645e-05,2]
[332853009,1721582204743,155.0,8.645e-05,2]
[332853010,1721582204985,155.0,8.645e-05,2]
[332853011,1721582206983,150.0,8.645e-05,2]
[332853012,1721582207003,141.13157161,8.645e-05,2]
[332853013,1721582208033,8.86842839,8.645e-05,2]
[332853014,1721582208054,150.0,8.645e-05,2]
[332853015,1721582208074,29.82984662,8.645e-05,2]
[332853016,1721582208678,120.17015338,8.645e-05,2]
[332853017,1721582208699,58.27703181,8.645e-05,2]
[332853018,1721582220575,150.0,8.645e-05,2]
[332853019,1721582220596,150.0,8.645e-05,2]
[332853020,1721582220618,150.0,8.645e-05,2]
[332853021,1721582220638,157.97679431,8.645e-05,2]
[332853022,1721582220659,761.25487367,8.645e-05,2]
[332853023,1721582245110,870.85768416,8.645e-05,2]
[332853024,1721582257033,158.80623493,8.645e-05,2]
[332853025,1721582274014,150.0,8.645e-05,2]
[332853026,1721582274035,150.0,8.645e-05,2]
[332853027,1721582274057,570.85768416,8.645e-05,2]
[332853028,1721582279554,150.0,8.645e-05,2]
[332853029,1721582279575,5.0,8.645e-05,2]
[332853030,1721582284995,150.0,8.645e-05,2]
[332853031,1721582285016,5.0,8.645e-05,2]
[332853032,1721582285137,145.0,8.645e-05,2]
[332853033,1721582285159,150.0,8.645e-05,2]
[332853034,1721582285181,150.0,8.645e-05,2]
[332853035,1721582285204,150.0,8.645e-05,2]
[332853036,1721582285228,202.15416373,8.645e-05,2]
[332853037,1721582296074,150.0,8.645e-05,2]
[332853038,1721582296094,150.0,8.645e-05,2]
[332853039,1721582296115,150.0,8.645e-05,2]
[332853040,1721582296135,150.0,8.645e-05,2]
[332853041,1721582296156,150.0,8.645e-05,2]
[332853042,1721582296179,150.0,8.645e-05,2]
[332853043,1721582296199,295.0,8.645e-05,2]
[332853044,1721582296219,174.23166798,8.645e-05,2]
[332853045,1721582309018,291.13157161,8.645e-05,2]
[332853046,1721582332991,2408.90451829,8.645e-05,2]
[332853047,1721582339035,291.13157161,8.645e-05,2]
[332853048,1721582352424,158.80623493,8.645e-05,2]
[332853049,1721582369022,870.85768416,8.645e-05,2]
[332853050,1721582370151,797.15416373,8.645e-05,2]
[332853051,1721582384697,1369.23166798,8.645e-05,2]
[332853052,1721582389003,166.7283834,8.645e-05,2]
[332853053,1721582392941,224.47982687,8.645e-05,2]
[332853054,1721582402129,-2916.84943,9.412e-05,2]
[332853055,1721582402152,-176.84,9.613e-05,2]
[332853056,1721582402176,-598.5,9.82e-05,2]
[332853057,1721582402199,-578.07,9.828e-05,2]
[332853058,1721582402222,-578.07,9.831e-05,2]
[332853059,1721582402245,-578.07,9.833e-05,2]
[332853060,1721582402269,-578.07,9.836e-05,2]
[332853061,1721582402291,-578.07,9.838e-05,2]
[332853062,1721582402315,-578.07,9.841e-05,2]
[332853063,1721582402337,-578.07,9.843e-05,2]
[332853064,1721582402360,-578.07,9.846e-05,2]
[332853065,1721582402384,-578.07,9.849e-05,2]
[332853066,1721582402407,-578.07,9.851e-05,2]
[332853067,1721582402430,-209.11057,9.854e-05,2]
[332853068,1721582402795,150.0,8.645e-05,2]
[332853069,1721582403041,150.0,8.645e-05,2]
[332853070,1721582403220,153.46294058,8.645e-05,2]
[332853072,1721582445321,-250.0,9.481e-05,2]
[332853073,1721582445344,-1750.0,9.702e-05,2]
[332853074,1721582447437,158.80623493,8.645e-05,2]
[332853075,1721582449031,291.13157161,8.645e-05,2]
[332853076,1721582454251,797.15416373,8.645e-05,2]
[332853077,1721582455265,-168.41,9.679e-05,2]
[332853078,1721582455287,-86.58,9.702e-05,2]
[332853079,1721582455317,-368.95943,9.854e-05,2]
[332853080,1721582455340,-922.79744065,9.854e-05,2]
[332853081,1721582455364,-453.25312935,9.856e-05,2]
[332853082,1721582462070,870.85768416,8.645e-05,2]
[332853083,1721582464316,-124.81687065,9.856e-05,2]
[332853084,1721582464340,-578.07,9.859e-05,2]
[332853085,1721582464367,-578.07,9.861e-05,2]
[332853086,1721582464390,-578.07,9.864e-05,2]
[332853087,1721582464413,-140.97312935,9.867e-05,2]
[332853088,1721582473111,1369.23166798,8.645e-05,2]
[332853089,1721582477363,-437.09687065,9.867e-05,2]
[332853090,1721582477400,-578.07,9.869e-05,2]
[332853091,1721582477446,-578.07,9.872e-05,2]
[332853092,1721582477482,-406.76312935,9.874e-05,2]
[332853093,1721582487439,-171.30687065,9.874e-05,2]
[332853094,1721582487463,-578.07,9.877e-05,2]
[332853095,1721582487485,-373.81,9.922e-05,2]
[332853096,1721582487506,-876.81312935,9.959e-05,2]
[332853097,1721582642273,1624.32,8.219e-05,2]
[332853098,1721582673989,176.84,7.848e-05,2]
[332853099,1721582686493,158.80623493,8.219e-05,2]
[332853100,1721582686568,291.13157161,8.219e-05,2]
[332853101,1721582691057,230.77141876,8.219e-05,2]
[332853102,1721582694100,1369.23166798,8.219e-05,2]
[332853103,1721582704343,797.15416373,8.219e-05,2]
[332853104,1721582713171,797.15416373,8.219e-05,2]
[332853105,1721582732462,4284.59465664,8.219e-05,2]
[332853107,1721582783466,158.80623493,8.219e-05,2]
[332853108,1721582785220,291.13157161,8.219e-05,2]
[332853109,1721582819505,797.15416373,8.219e-05,2]
[332853137,1721582869706,150.0,8.219e-05,2]
[332853138,1721582869731,18.26,8.219e-05,2]
[332853140,1721582891473,158.80623493,8.219e-05,2]
[332853142,1721582895566,291.13157161,8.219e-05,2]
[332853143,1721582895668,-168.26,9.093e-05,2]
[332853144,1721582895690,-1527.95,9.751e-05,2]
[332853145,1721582895711,-500.0,9.765e-05,2]
[332853146,1721582895732,-332.37351083,9.798e-05,2]
[332853147,1721582896052,-3579.66062335,9.798e-05,2]
[332853148,1721582896074,-7891.75586582,9.798e-05,2]
[332853149,1721582905692,526.55254546,8.219e-05,2]
[332853173,1721582950567,870.63292453,8.219e-05,2]
[332853186,1721582994470,275.43817124,8.219e-05,2]
[332853191,1721583005573,291.13157161,8.219e-05,2]
[332853198,1721583031495,-438.65991087,9.779e-05,2]
[332853202,1721583031581,-3458.03008913,9.779e-05,2]
[332853203,1721583031591,-250.0,9.779e-05,2]
[332853204,1721583031601,-16008.24413418,9.798e-05,2]
[332853205,1721583031611,-205.0,9.8e-05,2]
[332853206,1721583031620,-908.33,9.8e-05,2]
[332853207,1721583031629,-250.0,9.811e-05,2]
[332853208,1721583031639,-200.0,9.816e-05,2]
[332853209,1721583031649,-235.77,9.821e-05,2]
[332853210,1721583031658,-1852.42,9.84e-05,2]
[332853211,1721583031667,-344.4,9.868e-05,2]
[332853212,1721583031678,-944.17,9.913e-05,2]
[332853213,1721583031689,-1000.0,9.924e-05,2]
[332853214,1721583031698,-208.68,9.939e-05,2]
[332853215,1721583031707,-708.26,9.954e-05,2]
[332853216,1721583031716,-499.99,9.962e-05,2]
[332853217,1721583031726,-300.0,9.962e-05,2]
[332853218,1721583031735,-870.63292453,9.962e-05,2]
[332853219,1721583031745,-1047.53324844,9.962e-05,2]
[332853220,1721583031758,-206.95454639,9.962e-05,2]
[332853221,1721583031768,-168.26,9.967e-05,2]
[332853222,1721583031777,-150.0,9.995e-05,2]
[332853223,1721583031786,-20633.79,9.996e-05,2]
[332853224,1721583031795,-200.0,0.00010149,2]
[332853225,1721583031805,-296.92,0.00010252,2]
[332853226,1721583031814,-170.57,0.00010364,2]
[332853227,1721583031824,-6898.6641,0.00010378,2]
[332853228,1721583031833,-1624.32,0.0001047,2]
[332853229,1721583031842,-4470.48250681,0.00010479,2]
[332853230,1721583031851,-702.44461595,0.00010479,2]
[332853232,1721583031861,-219.97665441,0.00010479,2]
[332853234,1721583031870,-8152.16590059,0.00010531,2]
[332853236,1721583031879,-180.18544317,0.00010531,2]
[332853238,1721583031888,-155.0,0.00010531,2]
[332853240,1721583031898,-155.0,0.00010531,2]
[332853242,1721583031908,-202.33990241,0.00010531,2]
[332853244,1721583031917,-155.0,0.00010531,2]
[332853245,1721583031927,-155.64374751,0.00010531,2]
[332853246,1721583031937,-686.09609962,0.00010531,2]
[332853247,1721583031946,-412.41398176,0.00010531,2]
[332853248,1721583031955,-1445.92071075,0.00010531,2]
[332853249,1721583031965,-431.87035998,0.00010531,2]
[332853250,1721583031975,-218.40907666,0.00010531,2]
[332853251,1721583031984,-413.16817213,0.00010531,2]
[332853252,1721583031994,-155.0,0.00010531,2]
[332853253,1721583032004,-196.48212204,0.00010531,2]
[332853254,1721583032016,-2919.90210817,0.00010531,2]
[332853255,1721583032025,-157.90834328,0.00010531,2]
[332853256,1721583032035,-155.0,0.00010531,2]
[332853257,1721583032044,-155.46671183,0.00010531,2]
[332853258,1721583032055,-155.4055951,0.00010531,2]
[332853259,1721583032065,-155.0,0.00010531,2]
[332853260,1721583032074,-244.95389257,0.00010531,2]
[332853261,1721583032083,-155.0,0.00010531,2]
[332853262,1721583032091,-159.10147933,0.00010531,2]
[332853263,1721583032101,-300.23388085,0.00010531,2]
[332853264,1721583032110,-156.48758241,0.00010531,2]
[332853265,1721583032119,-155.84623679,0.00010531,2]
[332853266,1721583032128,-160.08814564,0.00010531,2]
[332853267,1721583032138,-202.77231055,0.00010531,2]
[332853268,1721583032147,-528.18990579,0.00010531,2]
[332853269,1721583032156,-155.96028081,0.00010531,2]
[332853270,1721583032166,-201.69792095,0.00010531,2]
[332853271,1721583032175,-155.0,0.00010531,2]
[332853272,1721583032184,-155.0,0.00010531,2]
[332853273,1721583032193,-155.53837748,0.00010531,2]
[332853274,1721583032203,-196.8459116,0.00010531,2]
[332853275,1721583032212,-158.66133679,0.00010531,2]
[332853276,1721583032222,-159.86949936,0.00010531,2]
[332853277,1721583032231,-252.11946917,0.00010531,2]
[332853278,1721583032240,-155.42821111,0.00010531,2]
[332853279,1721583032249,-242.90606631,0.00010531,2]
[332853280,1721583032260,-155.06149887,0.00010531,2]
[332853281,1721583032269,-162.51667171,0.00010531,2]
[332853282,1721583032279,-155.0,0.00010531,2]
[332853283,1721583032288,-155.18426986,0.00010531,2]
[332853284,1721583032298,-150.0,0.00010701,2]
[332853285,1721583032308,-168.26,0.00010841,2]
[332853286,1721583032318,-300.0,0.000109,3]
[332853287,1721583032331,-832.89,0.00010932,2]
[332853288,1721583032343,-150.0,0.00010959,2]
[332853289,1721583032354,-708.23,0.00010959,2]